[Event "FIDE WCCC Girls-10 2024"]
[Site "Montesilvano"]
[Date "2024.11.25"]
[Round "10.1"]
[White "Tselmuun, Ider"]
[Black "Yang, Aimee"]
[Result "0-1"]
[ECO "D01"]
[WhiteElo "1846"]
[BlackElo "1864"]
[Annotator "NA RC"]
[PlyCount "148"]
[EventDate "2024.11.18"]
[EventType "swiss"]
[EventCountry "ITA"]
[SourceTitle "playchess.com"]
[Source "ChessBase"]
[SourceQuality "1"]
[TimeControl "5400+30"]

1. d4 {[%emt 0:04:48]} Nf6 {[%emt 0:00:10]} 2. Bg5 {[%emt 0:00:12]} d5 {[%emt 0:00:59]} 3. Nc3 {[%emt 0:00:25]} g6 {[%emt 0:01:41]} 4. Bxf6 {[%emt 0:00:45]} exf6 {[%emt 0:00:12]} 5. e3 {[%emt 0:00:31]} c6 {[%emt 0:00:55]} 6. Bd3 {[%emt 0:00:21]} Bg7 {[%emt 0:00:41]} 7. h4 {[%emt 0:00:31]} h5 {[%emt 0:00:59]} 8. Nge2 {[%emt 0:00:16]} b6 {[%emt 0:03:17]} 9. Nf4 {[%emt 0:01:30]} f5 {[%emt 0:05:51]} 10. g3 {[%emt 0:06:26]} Ba6 {[%emt 0:01:19]} 11. O-O {[%emt 0:00:46]} O-O {[%emt 0:03:37]} 12. Nce2 {[%emt 0:03:53]} Bxd3 {[%emt 0:03:05]} 13. Qxd3 {[%emt 0:00:11]} Nd7 {[%emt 0:01:38]} 14. c4 {[%emt 0:04:33]} Nf6 {[%emt 0:05:00]} 15. Rac1 {[%emt 0:00:19]} Qd7 {[%emt 0:01:41]} 16. cxd5 {[%emt 0:05:09]} Nxd5 {[%emt 0:00:26]} 17. Nxd5 {[%emt 0:00:13]} Qxd5 {[%emt 0:01:22]} 18. Nf4 {[%emt 0:00:09]} Qd7 {[%emt 0:04:37]} 19. Qc4 {[%emt 0:00:14]} Kh7 {[%emt 0:15:29]} 20. Qxc6 {[%emt 0:00:23]} Rfd8 {[%emt 0:06:57]} 21. Qxd7 {[%emt 0:01:39]} Rxd7 {[%emt 0:02:16]} 22. Rc6 {[%emt 0:00:09]} Rad8 {[%emt 0:01:40]} 23. Rfc1 {[%emt 0:00:24]} Kg8 {[%emt 0:01:56]} 24. Rc8 {[%emt 0:01:08]} Bf6 {[%emt 0:00:39]} 25. Kf1 {[%emt 0:03:57]} Kg7 {[%emt 0:01:50]} 26. Ke2 {[%emt 0:00:09]} Be7 {[%emt 0:03:25]} 27. Kd3 {[%emt 0:02:34]} b5 {[%emt 0:08:39]} 28. R1c7 {[%emt 0:03:17]} a6 {[%emt 0:08:46]} 29. Rxd7 {[%emt 0:02:24]} Rxd7 {[%emt 0:00:05]} 30. Rc6 {[%emt 0:58:14]} Rd6 {[%emt 0:05:32]} 31. Rxd6 {[%emt 0:00:00]} Bxd6 {[%emt 0:00:03]} 32. e4 {[%emt 0:00:00]} fxe4+ {[%emt 0:04:15]} 33. Kxe4 {[%emt 0:00:00]} Kf6 {[%emt 0:03:04]} 34. Kd5 {[%emt 0:00:00]} Bf8 {[%emt 0:00:11]} 35. Kc6 {[%emt 0:00:00]} Kf5 {[%emt 0:02:04]} 36. f3 {[%emt 0:00:00]} b4 {[%emt 0:02:12]} 37. Nd3 {[%emt 0:00:00]} f6 {[%emt 0:00:32]} 38. d5 {[%emt 0:00:00]} g5 {[%emt 0:00:38]} 39. d6 {[%emt 0:00:00]} g4 {[%emt 0:00:54]} 40. d7 {[%emt 0:00:00]} Be7 {[%emt 0:00:24]} 41. f4 {[%emt 0:00:00]} Ke4 {[%emt 0:01:15]} 42. Nxb4 {[%emt 0:00:00]} Kf3 {[%emt 0:00:19]} 43. Kc7 {[%emt 0:00:00]} Bxb4 {[%emt 0:00:29]} 44. Kb6 {[%emt 0:00:00]} Be7 {[%emt 0:00:09]} 45. Kxa6 {[%emt 0:00:00]} Kxg3 {[%emt 0:01:00]} 46. b4 {[%emt 0:00:00]} Kf3 {[%emt 0:00:31]} 47. b5 {[%emt 0:00:00]} g3 {[%emt 0:00:10]} 48. b6 {[%emt 0:00:00]} g2 {[%emt 0:00:08]} 49. b7 {[%emt 0:00:00]} g1=Q {[%emt 0:01:58]} 50. b8=Q {[%emt 0:10:00]} Qf1+ {[%emt 0:00:00]} 51. Kb7 {[%emt 0:00:00]} Qb1+ {[%emt 0:00:21]} 52. Kc8 {[%emt 0:00:00]} Qxa2 {[%emt 0:00:26]} 53. Qb7+ {[%emt 0:00:00]} Kxf4 {[%emt 0:00:30]} 54. d8=Q {[%emt 0:00:00]} Bxd8 {[%emt 0:00:12]} 55. Qb4+ {[%emt 0:00:00]} Ke5 {[%emt 0:00:41]} 56. Kxd8 {[%emt 0:00:00]} Qd5+ {[%emt 0:00:10]} 57. Kc7 {[%emt 0:00:00]} Qf7+ {[%emt 0:00:17]} 58. Kd8 {[%emt 0:00:00]} Qg8+ {[%emt 0:00:16]} 59. Kd7 {[%emt 0:00:00]} Qg4+ {[%emt 0:00:21]} 60. Qxg4 {[%emt 0:00:00]} hxg4 {[%emt 0:00:05]} 61. Ke7 {[%emt 0:00:00]} g3 {[%emt 0:00:18]} 62. Kf7 {[%emt 0:00:00]} g2 {[%emt 0:00:08]} 63. h5 {[%emt 0:06:30]} g1=Q {[%emt 0:00:07]} 64. h6 {[%emt 0:00:00]} Qa7+ {[%emt 0:00:12]} 65. Kg6 {[%emt 0:00:00]} f5 {[%emt 0:00:09]} 66. h7 Qxh7+ {[%emt 0:00:09]} 67. Kxh7 {[%emt 0:00:00]} f4 {[%emt 0:00:04]} 68. Kg6 {[%emt 0:00:00]} f3 {[%emt 0:00:04]} 69. Kg5 {[%emt 0:00:00]} f2 {[%emt 0:00:06]} 70. Kg4 {[%emt 0:00:00]} f1=Q {[%emt 0:00:16]} 71. Kg3 {[%emt 0:00:00]} Qf4+ {[%emt 0:00:12]} 72. Kg2 {[%emt 0:00:00]} Qe3 {[%emt 0:02:36]} 73. Kh2 {[%emt 0:00:00]} Kf4 {[%emt 0:00:08]} 74. Kh1 {[%emt 0:00:00]} Qe2 {[%emt 0:00:10]} 0-1

[Event "FIDE WCCC Girls-10 2024"]
[Site "Montesilvano"]
[Date "2024.11.25"]
[Round "10.2"]
[White "Sholpanbek, Zhansaya"]
[Black "Berikkyzy Alanna"]
[Result "1/2-1/2"]
[ECO "D02"]
[WhiteElo "1657"]
[BlackElo "2043"]
[Annotator "RC"]
[PlyCount "130"]
[EventDate "2024.11.18"]
[EventType "swiss"]
[EventCountry "ITA"]
[SourceTitle "playchess.com"]
[Source "ChessBase"]
[SourceQuality "1"]
[TimeControl "5400+30"]

1. d4 {[%emt 0:00:03]} d5 {[%emt 0:00:05]} 2. Bf4 {[%emt 0:00:08]} Nf6 {[%emt 0:00:12]} 3. e3 {[%emt 0:00:15]} e6 {[%emt 0:00:10]} 4. c3 {[%emt 0:00:20]} Bd6 {[%emt 0:00:44]} 5. Bg3 {[%emt 0:00:22]} O-O {[%emt 0:00:15]} 6. Nd2 {[%emt 0:00:22]} c5 {[%emt 0:00:49]} 7. Ngf3 {[%emt 0:00:19]} Qc7 {[%emt 0:00:30]} 8. Bd3 {[%emt 0:09:15]} Nbd7 {[%emt 0:01:31]} 9. Bxd6 {[%emt 0:01:59]} Qxd6 {[%emt 0:00:13]} 10. O-O {[%emt 0:00:20]} e5 {[%emt 0:01:07]} 11. dxe5 {[%emt 0:03:15]} Nxe5 {[%emt 0:00:09]} 12. Be2 {[%emt 0:07:05]} Rd8 {[%emt 0:05:21]} 13. Qc2 {[%emt 0:06:10]} Be6 {[%emt 0:07:25]} 14. Rfd1 {[%emt 0:02:39]} Nxf3+ {[%emt 0:03:13]} 15. Nxf3 {[%emt 0:06:57]} Rac8 {[%emt 0:02:56]} 16. c4 {[%emt 0:03:18]} Qe7 {[%emt 0:02:57]} 17. Ng5 {[%emt 0:05:29]} h6 {[%emt 0:07:30]} 18. Nxe6 {[%emt 0:01:07]} fxe6 {[%emt 0:00:09]} 19. Bf3 {[%emt 0:01:59]} Qf7 {[%emt 0:09:06]} 20. Qb3 {[%emt 0:13:10]} b6 {[%emt 0:01:38]} 21. a4 {[%emt 0:02:37]} d4 {[%emt 0:03:59]} 22. a5 {[%emt 0:02:17]} e5 {[%emt 0:07:12]} 23. axb6 {[%emt 0:02:56]} axb6 {[%emt 0:00:18]} 24. Qxb6 {[%emt 0:01:30]} e4 {[%emt 0:05:33]} 25. Ra7 {[%emt 0:01:25]} Nd7 {[%emt 0:04:12]} 26. Rxd7 {[%emt 0:01:30]} Qxd7 {[%emt 0:01:35]} 27. Bxe4 {[%emt 0:00:50]} Qd6 {[%emt 0:00:39]} 28. Bd5+ {[%emt 0:01:55]} Kh8 {[%emt 0:00:55]} 29. Qxd6 {[%emt 0:01:20]} Rxd6 {[%emt 0:00:13]} 30. exd4 {[%emt 0:02:07]} cxd4 {[%emt 0:00:10]} 31. g3 {[%emt 0:00:31]} Rb6 {[%emt 0:01:10]} 32. Rxd4 {[%emt 0:05:42]} Rxb2 {[%emt 0:00:30]} 33. Re4 {[%emt 0:00:44]} Rf8 {[%emt 0:01:29]} 34. Rf4 {[%emt 0:08:30]} Rxf4 {[%emt 0:01:26]} 35. gxf4 {[%emt 0:00:10]} g6 {[%emt 0:01:59]} 36. Kg2 {[%emt 0:01:23]} Kg7 {[%emt 0:01:48]} 37. h4 {[%emt 0:04:06]} Rb3 {[%emt 0:03:58]} 38. f3 {[%emt 0:01:08]} Kf6 {[%emt 0:01:49]} 39. Kg3 {[%emt 0:00:21]} Rc3 {[%emt 0:02:34]} 40. Kf2 {[%emt 0:01:04]} Ke7 {[%emt 0:06:02]} 41. Kg3 {[%emt 0:00:46]} Kf6 {[%emt 0:01:38]} 42. Kg2 {[%emt 0:00:15]} Rc1 {[%emt 0:04:07]} 43. Kh2 {[%emt 0:00:54]} Rc3 {[%emt 0:02:53]} 44. Kg2 {[%emt 0:00:09]} Rc2+ {[%emt 0:00:23]} 45. Kg3 {[%emt 0:00:09]} Rd2 {[%emt 0:00:45]} 46. Kh3 {[%emt 0:00:27]} Rd4 {[%emt 0:00:59]} 47. Kg4 {[%emt 0:03:28]} g5 {[%emt 0:01:31]} 48. hxg5+ {[%emt 0:00:53]} hxg5 {[%emt 0:00:58]} 49. Be4 {[%emt 0:00:24]} gxf4 {[%emt 0:00:35]} 50. Kxf4 {[%emt 0:00:34]} Rxc4 {[%emt 0:00:06]} 51. Kg4 {[%emt 0:00:19]} Ke5 {[%emt 0:00:16]} 52. Kg3 {[%emt 0:00:16]} Rc8 {[%emt 0:00:20]} 53. Kf2 {[%emt 0:00:35]} Kf4 {[%emt 0:00:10]} 54. Ke2 {[%emt 0:00:20]} Rh8 {[%emt 0:00:26]} 55. Kd2 {[%emt 0:00:26]} Rh2+ {[%emt 0:00:16]} 56. Kd3 {[%emt 0:00:20]} Ra2 {[%emt 0:00:20]} 57. Kd4 {[%emt 0:01:00]} Rd2+ {[%emt 0:00:08]} 58. Kc4 {[%emt 0:00:22]} Ke3 {[%emt 0:00:22]} 59. Kc3 {[%emt 0:00:27]} Rd8 {[%emt 0:00:08]} 60. Kc4 {[%emt 0:00:20]} Rd7 {[%emt 0:00:09]} 61. Kc5 {[%emt 0:00:34]} Rc7+ {[%emt 0:00:37]} 62. Kd5 {[%emt 0:00:24]} Rd7+ {[%emt 0:00:14]} 63. Kc5 {[%emt 0:00:22]} Rd4 {[%emt 0:00:37]} 64. Kb5 {[%emt 0:00:25]} Rxe4 {[%emt 0:01:25]} 65. fxe4 {[%emt 0:00:07]} Kxe4 {[%emt 0:00:39]} 1/2-1/2

[Event "FIDE WCCC Girls-10 2024"]
[Site "Montesilvano"]
[Date "2024.11.25"]
[Round "10.3"]
[White "Anistoroaei, Maria"]
[Black "Filippova, Milana"]
[Result "*"]
[ECO "B31"]
[WhiteElo "1715"]
[BlackElo "1687"]
[Annotator "NA RC"]
[PlyCount "43"]
[EventDate "2024.11.18"]
[EventType "swiss"]
[EventCountry "ITA"]
[SourceTitle "playchess.com"]
[Source "ChessBase"]
[SourceQuality "1"]
[TimeControl "5400+30"]

1. e4 {[%emt 0:00:01]} c5 {[%emt 0:00:03]} 2. Nf3 {[%emt 0:00:07]} Nc6 {[%emt 0:00:04]} 3. Bb5 {[%emt 0:00:04]} g6 {[%emt 0:00:55]} 4. Bxc6 {[%emt 0:00:18]} dxc6 {[%emt 0:01:16]} 5. d3 {[%emt 0:00:15]} Bg7 {[%emt 0:00:08]} 6. h3 {[%emt 0:00:22]} e5 {[%emt 0:00:17]} 7. O-O {[%emt 0:01:14]} Qe7 {[%emt 0:00:10]} 8. Nc3 {[%emt 0:00:43]} Nf6 {[%emt 0:00:19]} 9. Be3 {[%emt 0:00:52]} O-O {[%emt 0:00:22]} 10. Qd2 {[%emt 0:00:21]} Ne8 {[%emt 0:00:30]} 11. Nh2 {[%emt 0:01:58]} Nc7 {[%emt 0:00:26]} 12. Bh6 {[%emt 0:04:05]} Ne6 {[%emt 0:01:31]} 13. Bxg7 {[%emt 0:01:44]} Kxg7 {[%emt 0:00:12]} 14. Ne2 {[%emt 0:00:50]} Nd4 {[%emt 0:07:10]} 15. f4 {[%emt 0:04:18]} Nxe2+ {[%emt 0:16:42]} 16. Qxe2 {[%emt 0:00:04]} exf4 {[%emt 0:00:06]} 17. Rxf4 {[%emt 0:21:19]} Qe5 {[%emt 0:01:36]} 18. Raf1 {[%emt 0:02:51]} Qxb2 {[%emt 0:13:06]} 19. Qd2 {[%emt 0:09:18]} Qd4+ {[%emt 0:04:32]} 20. Kh1 {[%emt 0:49:46]} f6 {[%emt 0:23:27]} 21. Nf3 {[%emt 0:00:00]} Qd8 {[%emt 0:03:15]} 22. Qc3 {[%emt 0:00:00]} *

[Event "FIDE WCCC Girls-10 2024"]
[Site "Montesilvano"]
[Date "2024.11.25"]
[Round "10.3"]
[White "Nguyen Doan, Bao Anh Angelina"]
[Black "Peng, Jingyi(Gd)"]
[Result "1-0"]
[ECO "B31"]
[WhiteElo "1628"]
[BlackElo "1720"]
[Annotator "NA RC"]
[PlyCount "155"]
[EventDate "2024.11.18"]
[EventType "swiss"]
[EventCountry "ITA"]
[SourceTitle "playchess.com"]
[Source "ChessBase"]
[SourceQuality "1"]
[TimeControl "5400+30"]

1. e4 {[%emt 0:00:01]} c5 {[%emt 0:00:03]} 2. Nf3 {[%emt 0:00:07]} Nc6 {[%emt 0:00:04]} 3. Bb5 {[%emt 0:00:04]} g6 {[%emt 0:00:55]} 4. Bxc6 {[%emt 0:00:18]} dxc6 {[%emt 0:01:16]} 5. d3 {[%emt 0:00:15]} Bg7 {[%emt 0:00:08]} 6. h3 {[%emt 0:00:22]} e5 {[%emt 0:00:17]} 7. O-O {[%emt 0:01:14]} Qe7 {[%emt 0:00:10]} 8. Nc3 {[%emt 0:00:43]} Nf6 {[%emt 0:00:19]} 9. Be3 {[%emt 0:00:52]} O-O {[%emt 0:00:22]} 10. Qd2 {[%emt 0:00:21]} Ne8 {[%emt 0:00:30]} 11. Nh2 {[%emt 0:01:58]} Nc7 {[%emt 0:00:26]} 12. Bh6 {[%emt 0:04:05]} Ne6 {[%emt 0:01:31]} 13. Bxg7 {[%emt 0:01:44]} Kxg7 {[%emt 0:00:12]} 14. Ne2 {[%emt 0:00:50]} Nd4 {[%emt 0:07:10]} 15. f4 {[%emt 0:04:18]} Nxe2+ {[%emt 0:16:42]} 16. Qxe2 {[%emt 0:00:04]} exf4 {[%emt 0:00:06]} 17. Rxf4 {[%emt 0:21:19]} Qe5 {[%emt 0:01:36]} 18. Raf1 {[%emt 0:02:51]} Qxb2 {[%emt 0:13:06]} 19. Qd2 {[%emt 0:09:18]} Qd4+ {[%emt 0:04:32]} 20. Kh1 {[%emt 0:49:46]} f6 {[%emt 0:23:27]} 21. Nf3 {[%emt 0:00:00]} Qd8 {[%emt 0:03:15]} 22. Qc3 {[%emt 0:00:00]} Qe7 {[%emt 0:02:24]} 23. e5 {[%emt 0:00:00]} f5 {[%emt 0:04:50]} 24. Nd2 {[%emt 0:00:00]} Be6 {[%emt 0:01:27]} 25. a3 {[%emt 0:00:00]} Rae8 {[%emt 0:05:39]} 26. R4f2 {[%emt 0:00:00]} b6 {[%emt 0:03:41]} 27. Nf3 {[%emt 0:00:00]} a5 {[%emt 0:05:03]} 28. Rb1 {[%emt 0:00:00]} Rb8 {[%emt 0:00:23]} 29. d4 {[%emt 0:00:00]} c4 {[%emt 0:00:06]} 30. Nd2 {[%emt 0:00:00]} b5 {[%emt 0:03:39]} 31. Qxa5 {[%emt 0:05:30]} Ra8 {[%emt 0:00:14]} 32. Qb4 {[%emt 0:00:00]} Qxb4 {[%emt 0:00:50]} 33. axb4 {[%emt 0:00:00]} Ra2 {[%emt 0:00:14]} 34. c3 {[%emt 0:00:25]} Rc2 {[%emt 0:01:22]} 35. Ne4 {[%emt 0:00:19]} Rxf2 {[%emt 0:00:25]} 36. Nxf2 {[%emt 0:00:05]} Ra8 {[%emt 0:00:06]} 37. Rc1 {[%emt 0:01:10]} Ra2 {[%emt 0:00:09]} 38. Kg1 {[%emt 0:00:24]} g5 {[%emt 0:01:08]} 39. Nd1 {[%emt 0:00:40]} Bd5 {[%emt 0:01:29]} 40. Nf2 {[%emt 0:00:35]} g4 {[%emt 0:00:28]} 41. hxg4 {[%emt 0:00:27]} fxg4 {[%emt 0:00:04]} 42. g3 {[%emt 0:00:22]} h5 {[%emt 0:00:41]} 43. Re1 {[%emt 0:00:48]} Kf7 {[%emt 0:00:25]} 44. Ne4 {[%emt 0:00:34]} Rc2 {[%emt 0:00:59]} 45. Nd6+ {[%emt 0:00:37]} Ke6 {[%emt 0:00:14]} 46. Re3 {[%emt 0:00:21]} Bf3 {[%emt 0:00:38]} 47. Ne8 {[%emt 0:00:36]} Rc1+ {[%emt 0:00:32]} 48. Kf2 {[%emt 0:00:09]} Rc2+ {[%emt 0:00:36]} 49. Ke1 {[%emt 0:00:39]} Ke7 {[%emt 0:00:32]} 50. Ng7 {[%emt 0:00:35]} Rc1+ {[%emt 0:00:23]} 51. Kd2 {[%emt 0:00:23]} Rh1 {[%emt 0:00:36]} 52. Nf5+ {[%emt 0:00:45]} Ke6 {[%emt 0:00:09]} 53. Ng7+ {[%emt 0:00:11]} Ke7 {[%emt 0:00:05]} 54. e6 {[%emt 0:00:22]} Rh2+ {[%emt 0:00:12]} 55. Ke1 {[%emt 0:00:20]} Rh1+ {[%emt 0:01:24]} 56. Kf2 {[%emt 0:00:09]} Rh2+ {[%emt 0:00:09]} 57. Kg1 {[%emt 0:00:20]} Re2 {[%emt 0:01:03]} 58. Nf5+ {[%emt 0:00:58]} Kf6 {[%emt 0:00:25]} 59. Rxe2 {[%emt 0:00:17]} Bxe2 {[%emt 0:00:05]} 60. e7 {[%emt 0:00:07]} Kf7 {[%emt 0:00:22]} 61. Kf2 {[%emt 0:00:19]} Bd3 {[%emt 0:00:05]} 62. e8=Q+ {[%emt 0:02:33]} Kxe8 {[%emt 0:02:07]} 63. Ng7+ {[%emt 0:00:00]} Ke7 {[%emt 0:00:00]} 64. Nxh5 {[%emt 0:00:00]} Bc2 {[%emt 0:00:23]} 65. Ke3 {[%emt 0:00:00]} Ke6 {[%emt 0:00:21]} 66. Kf4 {[%emt 0:00:14]} Bd1 {[%emt 0:00:35]} 67. Ng7+ {[%emt 0:01:21]} Kf6 {[%emt 0:00:38]} 68. Nf5 {[%emt 0:00:18]} Ke6 {[%emt 0:00:22]} 69. Ne3 {[%emt 0:00:08]} Be2 {[%emt 0:00:36]} 70. Nxg4 {[%emt 0:00:10]} Kd5 {[%emt 0:00:07]} 71. Nf6+ {[%emt 0:00:27]} Ke6 {[%emt 0:00:02]} 72. Ne4 {[%emt 0:00:10]} Kd5 {[%emt 0:00:12]} 73. Nf2 {[%emt 0:00:32]} Ke6 {[%emt 0:00:24]} 74. g4 {[%emt 0:00:04]} Kf6 {[%emt 0:00:23]} 75. g5+ {[%emt 0:00:04]} Kg6 {[%emt 0:00:05]} 76. Ng4 {[%emt 0:00:23]} Bd3 {[%emt 0:01:00]} 77. Ne5+ {[%emt 0:00:06]} Kh5 {[%emt 0:00:05]} 78. Nxc6 {[%emt 0:04:03]} 1-0

[Event "FIDE WCCC Girls-10 2024"]
[Site "Montesilvano"]
[Date "2024.11.25"]
[Round "10.4"]
[White "Anistoroaei, Maria"]
[Black "Filippova, Milana"]
[Result "0-1"]
[ECO "C54"]
[WhiteElo "1715"]
[BlackElo "1687"]
[Annotator "NA RC"]
[PlyCount "104"]
[EventDate "2024.11.18"]
[EventType "swiss"]
[EventCountry "ITA"]
[SourceTitle "playchess.com"]
[Source "ChessBase"]
[SourceQuality "1"]
[TimeControl "5400+30"]

1. e4 {[%emt 0:00:03]} e5 {[%emt 0:00:29]} 2. Nf3 {[%emt 0:00:25]} Nc6 {[%emt 0:00:19]} 3. Bc4 {[%emt 0:00:44]} Bc5 {[%emt 0:00:47]} 4. c3 {[%emt 0:01:34]} d6 {[%emt 0:03:37]} 5. d3 {[%emt 0:04:48]} Nf6 {[%emt 0:01:31]} 6. O-O {[%emt 0:01:53]} O-O {[%emt 0:01:20]} 7. Nbd2 {[%emt 0:00:29]} h6 {[%emt 0:01:58]} 8. h3 {[%emt 0:02:14]} a6 {[%emt 0:01:26]} 9. Re1 {[%emt 0:01:34]} b5 {[%emt 0:01:59]} 10. Bb3 {[%emt 0:00:19]} Re8 {[%emt 0:02:32]} 11. Nf1 {[%emt 0:01:32]} Na5 {[%emt 0:07:47]} 12. Bc2 {[%emt 0:06:14]} Bb6 {[%emt 0:02:42]} 13. b4 {[%emt 0:00:54]} Nc6 {[%emt 0:01:37]} 14. a4 {[%emt 0:01:52]} Bb7 {[%emt 0:01:15]} 15. Be3 {[%emt 0:16:15]} bxa4 {[%emt 0:02:38]} 16. Bxa4 {[%emt 0:08:36]} d5 {[%emt 0:06:04]} 17. exd5 {[%emt 0:07:13]} Nxd5 {[%emt 0:02:11]} 18. Bd2 {[%emt 0:05:50]} Re6 {[%emt 0:10:41]} 19. Bxc6 {[%emt 0:03:17]} Bxc6 {[%emt 0:04:43]} 20. Nxe5 {[%emt 0:02:06]} Bxf2+ {[%emt 0:08:53]} 21. Kxf2 {[%emt 0:01:56]} Rxe5 {[%emt 0:00:27]} 22. Rxe5 {[%emt 0:03:37]} Qf6+ {[%emt 0:00:07]} 23. Qf3 {[%emt 0:01:54]} Qxe5 {[%emt 0:00:29]} 24. d4 {[%emt 0:06:40]} Qd6 {[%emt 0:01:15]} 25. c4 {[%emt 0:01:07]} Nxb4 {[%emt 0:02:53]} 26. d5 {[%emt 0:00:26]} Bd7 {[%emt 0:01:57]} 27. Ne3 {[%emt 0:03:08]} Nd3+ {[%emt 0:04:02]} 28. Kg1 {[%emt 0:00:50]} Ne5 {[%emt 0:01:08]} 29. Qg3 {[%emt 0:01:06]} Nxc4 {[%emt 0:01:31]} 30. Qxd6 {[%emt 0:00:21]} Nxd6 {[%emt 0:00:05]} 31. Ba5 {[%emt 0:00:10]} Nb5 {[%emt 0:02:35]} 32. Rc1 {[%emt 0:00:08]} Rc8 {[%emt 0:01:36]} 33. Nc4 {[%emt 0:00:50]} Nd4 {[%emt 0:01:04]} 34. Re1 {[%emt 0:00:49]} Bb5 {[%emt 0:01:35]} 35. Nd2 {[%emt 0:00:36]} Ne2+ {[%emt 0:00:38]} 36. Kf2 {[%emt 0:00:07]} Nf4 {[%emt 0:00:11]} 37. Kf3 {[%emt 0:00:35]} Nxd5 {[%emt 0:00:05]} 38. Rc1 {[%emt 0:00:06]} c5 {[%emt 0:00:16]} 39. Nb3 {[%emt 0:00:34]} c4 {[%emt 0:00:14]} 40. Nd4 {[%emt 0:00:04]} Re8 {[%emt 0:01:28]} 41. Nf5 {[%emt 0:00:48]} Re6 {[%emt 0:02:07]} 42. Rd1 {[%emt 0:00:21]} Nf6 {[%emt 0:00:47]} 43. Bb4 {[%emt 0:02:33]} Kh7 {[%emt 0:00:55]} 44. Nd6 {[%emt 0:01:08]} Bc6+ {[%emt 0:00:27]} 45. Kf4 {[%emt 0:00:31]} Nd5+ {[%emt 0:00:07]} 46. Kf5 {[%emt 0:00:17]} Nxb4 {[%emt 0:00:12]} 47. Nxc4 {[%emt 0:00:09]} Bxg2 {[%emt 0:00:09]} 48. h4 {[%emt 0:00:07]} h5 {[%emt 0:00:37]} 49. Nd6 {[%emt 0:00:21]} Nd5 {[%emt 0:00:27]} 50. Nxf7 {[%emt 0:00:24]} Bh3+ {[%emt 0:00:34]} 51. Kg5 {[%emt 0:00:09]} Rg6+ {[%emt 0:00:06]} 52. Kxh5 {[%emt 0:00:06]} Nf4# {[%emt 0:00:19]} 0-1

[Event "FIDE WCCC Girls-10 2024"]
[Site "Montesilvano"]
[Date "2024.11.25"]
[Round "10.4"]
[White "Nguyen Doan, Bao Anh Angelina"]
[Black "Peng, Jingyi(Gd)"]
[Result "*"]
[ECO "C54"]
[WhiteElo "1628"]
[BlackElo "1720"]
[Annotator "NA RC"]
[PlyCount "42"]
[EventDate "2024.11.18"]
[EventType "swiss"]
[EventCountry "ITA"]
[SourceTitle "playchess.com"]
[Source "ChessBase"]
[SourceQuality "1"]
[TimeControl "5400+30"]

1. e4 {[%emt 0:00:03]} e5 {[%emt 0:00:29]} 2. Nf3 {[%emt 0:00:25]} Nc6 {[%emt 0:00:19]} 3. Bc4 {[%emt 0:00:44]} Bc5 {[%emt 0:00:47]} 4. c3 {[%emt 0:01:34]} d6 {[%emt 0:03:37]} 5. d3 {[%emt 0:04:48]} Nf6 {[%emt 0:01:31]} 6. O-O {[%emt 0:01:53]} O-O {[%emt 0:01:20]} 7. Nbd2 {[%emt 0:00:29]} h6 {[%emt 0:01:58]} 8. h3 {[%emt 0:02:14]} a6 {[%emt 0:01:26]} 9. Re1 {[%emt 0:01:34]} b5 {[%emt 0:01:59]} 10. Bb3 {[%emt 0:00:19]} Re8 {[%emt 0:02:32]} 11. Nf1 {[%emt 0:01:32]} Na5 {[%emt 1:20:02]} 12. Bc2 {[%emt 0:06:14]} Bb6 {[%emt 0:02:42]} 13. b4 {[%emt 0:00:54]} Nc6 {[%emt 0:01:37]} 14. a4 {[%emt 0:01:52]} Bb7 {[%emt 0:01:15]} 15. Be3 {[%emt 0:16:15]} bxa4 {[%emt 0:02:38]} 16. Bxa4 {[%emt 0:08:36]} d5 {[%emt 0:06:04]} 17. exd5 {[%emt 0:07:13]} Nxd5 {[%emt 0:02:11]} 18. Bd2 {[%emt 0:05:50]} Re6 {[%emt 0:10:41]} 19. Bxc6 {[%emt 0:03:17]} Bxc6 {[%emt 0:04:43]} 20. Nxe5 {[%emt 0:02:06]} Bxf2+ {[%emt 0:08:53]} 21. Kxf2 {[%emt 0:01:56]} Rxe5 {[%emt 0:00:27]} *

[Event "FIDE WCCC Girls-10 2024"]
[Site "Montesilvano"]
[Date "2024.11.25"]
[Round "10.5"]
[White "Khusnitdinova, Husnorakhon"]
[Black "Zhumambayeva Aliya"]
[Result "1-0"]
[ECO "B33"]
[WhiteElo "1626"]
[BlackElo "1607"]
[Annotator "NA RC"]
[PlyCount "101"]
[EventDate "2024.11.18"]
[EventType "swiss"]
[EventCountry "ITA"]
[SourceTitle "playchess.com"]
[Source "ChessBase"]
[SourceQuality "1"]
[TimeControl "5400+30"]

1. e4 {[%emt 0:00:03]} c5 {[%emt 0:00:03]} 2. Nf3 {[%emt 0:00:05]} Nc6 {[%emt 0:00:03]} 3. d4 {[%emt 0:00:08]} cxd4 {[%emt 0:00:05]} 4. Nxd4 {[%emt 0:00:06]} Nf6 {[%emt 0:00:07]} 5. Nc3 {[%emt 0:00:08]} e5 {[%emt 0:00:16]} 6. Ndb5 {[%emt 0:00:06]} d6 {[%emt 0:00:11]} 7. Bg5 {[%emt 0:00:52]} a6 {[%emt 0:00:19]} 8. Na3 {[%emt 0:01:40]} b5 {[%emt 0:00:25]} 9. Nd5 {[%emt 0:00:20]} Be7 {[%emt 0:03:14]} 10. Bxf6 {[%emt 0:02:02]} Bxf6 {[%emt 0:00:42]} 11. Be2 {[%emt 0:01:17]} O-O {[%emt 0:01:00]} 12. c3 {[%emt 0:01:20]} Be6 {[%emt 0:02:23]} 13. O-O {[%emt 0:00:22]} Rc8 {[%emt 0:04:50]} 14. Nc2 {[%emt 0:08:04]} Na5 {[%emt 0:08:46]} 15. Ncb4 {[%emt 0:02:22]} Bxd5 {[%emt 0:07:05]} 16. Qxd5 {[%emt 0:00:26]} Qb6 {[%emt 0:00:38]} 17. Rfd1 {[%emt 0:05:59]} Rfd8 {[%emt 0:01:22]} 18. a4 {[%emt 0:05:10]} Nc4 {[%emt 0:32:39]} 19. axb5 {[%emt 0:06:17]} axb5 {[%emt 0:03:57]} 20. Ra6 {[%emt 0:01:38]} Qc5 {[%emt 0:01:47]} 21. Bxc4 {[%emt 0:00:32]} bxc4 {[%emt 0:01:27]} 22. Rxd6 {[%emt 0:03:47]} Rxd6 {[%emt 0:01:18]} 23. Qxd6 {[%emt 0:00:01]} Qxd6 {[%emt 0:02:25]} 24. Rxd6 {[%emt 0:00:02]} Be7 {[%emt 0:06:27]} 25. Rc6 {[%emt 0:00:25]} Ra8 {[%emt 0:05:22]} 26. Ra6 {[%emt 0:01:23]} Rb8 {[%emt 0:03:29]} 27. Nc6 {[%emt 0:00:33]} Re8 {[%emt 0:08:36]} 28. Nxe7+ {[%emt 0:00:06]} Kf8 {[%emt 0:00:29]} 29. Nd5 {[%emt 0:00:14]} Rc8 {[%emt 0:00:26]} 30. Nb6 {[%emt 0:00:27]} Rd8 {[%emt 0:01:45]} 31. Ra8 {[%emt 0:00:08]} Rxa8 {[%emt 0:00:07]} 32. Nxa8 {[%emt 0:00:01]} Ke7 {[%emt 0:00:05]} 33. Nb6 {[%emt 0:00:04]} Ke6 {[%emt 0:00:11]} 34. Nxc4 {[%emt 0:00:04]} f6 {[%emt 0:00:06]} 35. b4 {[%emt 0:00:03]} Kd7 {[%emt 0:00:03]} 36. b5 {[%emt 0:00:02]} Kc7 {[%emt 0:00:07]} 37. Nb2 {[%emt 0:00:09]} Kb6 {[%emt 0:00:06]} 38. c4 {[%emt 0:00:03]} g6 {[%emt 0:00:04]} 39. Na4+ {[%emt 0:00:03]} Kc7 {[%emt 0:00:12]} 40. c5 {[%emt 0:00:06]} Kd7 {[%emt 0:00:22]} 41. Nb6+ {[%emt 0:00:06]} Kc7 {[%emt 0:01:01]} 42. Nd5+ {[%emt 0:00:23]} Kb7 {[%emt 0:00:07]} 43. c6+ {[%emt 0:00:03]} Kc8 {[%emt 0:00:08]} 44. b6 {[%emt 0:00:06]} Kb8 {[%emt 0:00:03]} 45. Ne7 {[%emt 0:00:07]} g5 {[%emt 0:00:12]} 46. c7+ {[%emt 0:00:07]} Kb7 {[%emt 0:00:04]} 47. c8=Q+ {[%emt 0:00:03]} Kxb6 {[%emt 0:00:13]} 48. Qc6+ {[%emt 0:00:17]} Ka5 {[%emt 0:00:57]} 49. Nd5 {[%emt 0:00:05]} h6 {[%emt 0:00:23]} 50. Qb6+ {[%emt 0:00:05]} Ka4 {[%emt 0:00:12]} 51. Qb4# {[%emt 0:00:05]} 1-0